fUSD/lending_fUSD_20241230
["ID","MTS","AMOUNT","RATE_DAILY","PERIOD"]
[347225513,1735594709154,-500.0,0.00024946,60]
[347225514,1735594709192,-1438.12,0.00024946,60]
[347225515,1735594709230,-500.0,0.00024946,60]
[347225516,1735594709266,-500.0,0.00024946,60]
[347225517,1735594709301,-819.65,0.00024946,60]
[347225518,1735594709337,-1438.12,0.00024946,60]
[347225519,1735594709371,-500.0,0.00024946,60]
[347225520,1735594709408,-500.0,0.00024946,60]
[347225521,1735594709443,-500.0,0.00024946,60]
[347225522,1735594709479,-819.65,0.00024946,60]
[347225523,1735594709517,-1438.12,0.00024946,60]
[347225524,1735594709553,-500.0,0.00024946,60]
[347225525,1735594709589,-500.0,0.00024946,60]
[347225526,1735594709626,-500.0,0.00024946,60]
[347225527,1735594709662,-1438.12,0.00024946,60]
[347225528,1735594709697,-500.0,0.00024946,60]
[347225529,1735594709731,-500.0,0.00024946,60]
[347225530,1735594709767,-500.0,0.00024946,60]
[347225531,1735594709802,-819.65,0.00024946,60]
[347225532,1735594709837,-1438.12,0.00024946,60]
[347225533,1735594709872,-500.0,0.00024946,60]
[347225534,1735594709909,-500.0,0.00024946,60]
[347225535,1735594709944,-500.0,0.00024946,60]
[347225536,1735594709981,-819.65,0.00024946,60]
[347225537,1735594710020,-1438.12,0.00024946,60]
[347225538,1735594710060,-500.0,0.00024946,60]
[347225539,1735594710099,-500.0,0.00024946,60]
[347225540,1735594710139,-500.0,0.00024946,60]
[347225541,1735594710186,-819.65,0.00024946,60]
[347225542,1735594710229,-1438.24705082,0.00024946,60]
[347225543,1735594710270,-540.15198485,0.00024946,60]
[347225544,1735594710307,-500.0,0.00024946,60]
[347225545,1735594710344,-500.0,0.00024946,60]
[347225546,1735594710383,-819.65,0.00024946,60]
[347225547,1735594710421,-210.89606221,0.00024946,60]
[347225548,1735594710458,-500.0,0.00024946,60]
[347225549,1735594710496,-819.65,0.00024946,60]
[347225550,1735594710533,-819.65,0.00024946,60]
[347225551,1735594710570,-500.0,0.00024946,60]
[347225552,1735594710607,-819.65,0.00024946,60]
[347225553,1735594710644,-500.0,0.00024946,60]
[347225554,1735594710680,-819.65,0.00024946,60]
[347225555,1735594710715,-819.65,0.00024946,60]
[347225556,1735594710750,-500.0,0.00024946,60]
[347225557,1735594710788,-819.80221119,0.00024946,60]
[347225558,1735594710821,-501.00999579,0.00024946,60]
[347225559,1735594710855,-500.0,0.00024946,60]
[347225560,1735594710891,-500.0,0.00024946,60]
[347225561,1735594710926,-500.0,0.00024946,60]
[347225562,1735594710961,-500.0,0.00024946,60]
[347225563,1735594711270,-500.0,0.00024946,60]
[347225564,1735594711305,-500.0,0.00024946,60]
[347225565,1735594711339,-538.09931264,0.00024946,60]
[347225566,1735594711374,-1331.83,0.00024946,60]
[347225567,1735594711411,-1331.83,0.00024946,60]
[347225568,1735594711446,-1431.26,0.00024946,60]
[347225569,1735594711482,-1331.83,0.00024946,60]
[347225570,1735594711517,-500.0,0.00024946,60]
[347225571,1735594711556,-1331.83,0.00024946,60]
[347225572,1735594711596,-1431.26,0.00024946,60]
[347225573,1735594711635,-500.0,0.00024946,60]
[347225574,1735594711674,-1331.83,0.00024946,60]
[347225575,1735594711712,-1431.26,0.00024946,60]
[347225576,1735594711750,-500.0,0.00024946,60]
[347225577,1735594711789,-1431.26,0.00024946,60]
[347225578,1735594711826,-500.0,0.00024946,60]
[347225579,1735594711863,-1331.83,0.00024946,60]
[347225580,1735594711900,-500.0,0.00024946,60]
[347225581,1735594711937,-1331.83,0.00024946,60]
[347225582,1735594711976,-1431.26,0.00024946,60]
[347225583,1735594712017,-500.0,0.00024946,60]
[347225584,1735594712059,-1331.83,0.00024946,60]
[347225585,1735594712100,-1431.26,0.00024946,60]
[347225586,1735594712143,-500.0,0.00024946,60]
[347225587,1735594712181,-1331.83,0.00024946,60]
[347225588,1735594712218,-1431.26,0.00024946,60]
[347225589,1735594712255,-1431.26,0.00024946,60]
[347225590,1735594712291,-1331.83,0.00024946,60]
[347225591,1735594712326,-500.0,0.00024946,60]
[347225592,1735594712361,-1431.26,0.00024946,60]
[347225593,1735594712398,-1331.83,0.00024946,60]
[347225594,1735594712434,-500.0,0.00024946,60]
[347225595,1735594712471,-500.73982058,0.00024946,60]
[347225596,1735594712515,-1331.83,0.00024946,60]
[347225597,1735594712552,-500.0,0.00024946,60]
[347225598,1735594712588,-1431.26,0.00024946,60]
[347225599,1735594712625,-1331.83,0.00024946,60]
[347225600,1735594712665,-500.0,0.00024946,60]
[347225601,1735594712706,-1431.26,0.00024946,60]
[347225602,1735594712747,-1331.83,0.00024946,60]
[347225603,1735594712791,-650.65,0.00024946,60]
[347225604,1735594712829,-537.97456573,0.00024946,60]
[347225605,1735594712867,-1431.26,0.00024946,60]
[347225606,1735594712902,-1331.83,0.00024946,60]
[347225607,1735594712938,-650.65,0.00024946,60]
[347225608,1735594712976,-1431.26,0.00024946,60]
[347225609,1735594713013,-650.65,0.00024946,60]
[347225610,1735594713056,-1331.83,0.00024946,60]
[347225611,1735594713097,-1431.26,0.00024946,60]
[347225612,1735594713137,-1331.83,0.00024946,60]
[347225613,1735594713180,-650.65,0.00024946,60]
[347225614,1735594713220,-1331.83,0.00024946,60]
[347225615,1735594713261,-1431.26,0.00024946,60]
[347225616,1735594713302,-650.65,0.00024946,60]
[347225617,1735594713341,-1331.83,0.00024946,60]
[347225618,1735594713384,-1431.26,0.00024946,60]
[347225619,1735594713428,-650.65,0.00024946,60]
[347225620,1735594713469,-1331.83,0.00024946,60]
[347225621,1735594713508,-1431.26,0.00024946,60]
[347225622,1735594713548,-650.65,0.00024946,60]
[347225623,1735594713587,-1331.83,0.00024946,60]
[347225624,1735594713627,-1431.26,0.00024946,60]
[347225625,1735594713667,-694.47,0.00024946,60]
[347225626,1735594713706,-650.65,0.00024946,60]
[347225627,1735594713746,-1331.83,0.00024946,60]
[347225628,1735594713785,-1431.26,0.00024946,60]
[347225629,1735594713825,-694.47,0.00024946,60]
[347225630,1735594713865,-650.65,0.00024946,60]
[347225631,1735594713905,-1331.83,0.00024946,60]
[347225632,1735594713945,-1431.26,0.00024946,60]
[347225633,1735594713989,-694.47,0.00024946,60]
[347225634,1735594714030,-650.65,0.00024946,60]
[347225635,1735594714075,-1431.26,0.00024946,60]
[347225636,1735594714116,-694.47,0.00024946,60]
[347225637,1735594714157,-1332.05709684,0.00024946,60]
[347225638,1735594714198,-650.65,0.00024946,60]
[347225639,1735594714240,-694.47,0.00024946,60]
[347225640,1735594714279,-1431.26,0.00024946,60]
[347225641,1735594714318,-650.65,0.00024946,60]
[347225642,1735594714356,-694.47,0.00024946,60]
[347225643,1735594714394,-1431.26,0.00024946,60]
[347225644,1735594714431,-650.65,0.00024946,60]
[347225645,1735594714467,-798.09,0.00024946,60]
[347225646,1735594714503,-694.47,0.00024946,60]
[347225647,1735594714539,-1431.26349308,0.00024946,60]
[347225648,1735594714576,-650.65,0.00024946,60]
[347225649,1735594714611,-798.09,0.00024946,60]
[347225650,1735594714647,-694.47,0.00024946,60]
[347225651,1735594714681,-650.65,0.00024946,60]
[347225652,1735594714716,-798.09,0.00024946,60]
[347225653,1735594714752,-694.47,0.00024946,60]
[347225654,1735594714788,-650.65,0.00024946,60]
[347225655,1735594714826,-798.09,0.00024946,60]
[347225656,1735594714865,-694.47,0.00024946,60]
[347225657,1735594715188,-650.65,0.00024946,60]
[347225658,1735594715227,-694.47,0.00024946,60]
[347225659,1735594715264,-571.04569212,0.00024946,60]
[347225660,1735594727760,3686.77,0.00010938,2]
[347225661,1735594731265,2099.64,0.00010959,2]
[347225662,1735594740184,1500.0,0.00010925,2]
[347225663,1735594783151,189.83936089,0.0001096,2]
[347225665,1735594904281,150.0,0.00010959,2]
[347225666,1735594938267,250.0,0.00010858,2]
[347225667,1735594972322,454.47,0.00010836,2]
[347225668,1735594972403,2506.33,0.00010836,2]
[347225669,1735594976088,498.24,0.00010836,2]
[347225671,1735595022833,165.61,0.00010839,2]
[347225673,1735595096741,985.02,0.00010876,2]
[347225674,1735595110560,189.83936089,0.0001096,2]
[347225675,1735595123794,1852.42,0.00010805,2]
[347225676,1735595161587,372.28,0.00010805,2]
[347225678,1735595266455,200.0,0.00010536,2]
[347225679,1735595341012,2173.66,0.0001077,2]
[347225680,1735595372978,529.52,0.00010137,2]
[347225681,1735595381314,250.0,0.00010786,2]
[347225682,1735595384367,200.0,0.00010732,2]
[347225683,1735595385106,4788.02,0.00010795,2]
[347225684,1735595388122,400.0,0.00010986,2]
[347225685,1735595417701,169.54,0.000108,2]
[347225686,1735595418202,618.83,0.000108,2]
[347225687,1735595428578,189.83936089,0.0001096,2]
[347225702,1735595432153,-151.0,0.00011049,2]
[347225703,1735595432162,-300.0,0.00011055,2]
[347225704,1735595432172,-563.1,0.00011056,2]
[347225705,1735595432188,-19275.47053154,0.00011056,2]
[347225706,1735595432199,-3747.32946846,0.00011056,2]
[347225707,1735595432209,-157.05,0.0001106,2]
[347225708,1735595432231,-157.05,0.00011065,2]
[347225709,1735595432242,-157.05,0.0001107,2]
[347225710,1735595432252,-167.04,0.00011134,2]
[347225711,1735595432264,-616.03,0.00011143,2]
[347225712,1735595432273,-150.0,0.00011178,2]
[347225713,1735595432282,-1000.0,0.00011197,2]
[347225714,1735595432291,-150.0,0.00011244,2]
[347225715,1735595432301,-504.06,0.00011449,2]
[347225716,1735595432311,-497.62,0.00011449,2]
[347225717,1735595432320,-495.31,0.00011463,2]
[347225718,1735595432329,-491.67,0.00011482,2]
[347225719,1735595432338,-506.11,0.00011482,2]
[347225720,1735595432347,-1672.48053154,0.00011507,2]
[347225721,1735595432359,-1078.51946846,0.00011507,2]
[347225722,1735595432368,-502.68,0.00011546,2]
[347225723,1735595432377,-501.91,0.00011559,2]
[347225724,1735595432386,-14.62,0.00011559,2]
[347225725,1735595432398,-476.17,0.00011559,2]
[347225726,1735595432407,-499.62,0.00011559,2]
[347225727,1735595432416,-493.65,0.00011559,2]
[347225728,1735595432425,-500.0,0.00011562,2]
[347225729,1735595432434,-1179.17,0.00011579,2]
[347225730,1735595432444,-156.60696341,0.000116,4]
[347225731,1735595432519,-143.39303659,0.000116,4]
[347225732,1735595432528,-201.0,0.00011629,2]
[347225733,1735595432537,-584.53496341,0.000117,4]
[347225734,1735595432548,-115.46503659,0.000117,4]
[347225735,1735595432557,-1100.0,0.000118,4]
[347225736,1735595432567,-13603.0,0.00011815,2]
[347225737,1735595432576,-436.52,0.00011878,2]
[347225738,1735595432586,-303.76,0.00011878,2]
[347225739,1735595432595,-182.76,0.00011878,2]
[347225740,1735595432604,-302.75,0.00011878,2]
[347225741,1735595432614,-182.76,0.00011878,2]
[347225742,1735595432623,-182.76,0.00011878,2]
[347225743,1735595432633,-182.76,0.00011878,2]
[347225744,1735595432642,-628.603,0.0001188,2]
[347225745,1735595432652,-1500.0,0.000119,4]
[347225746,1735595432662,-506.48,0.00012058,2]
[347225747,1735595432671,-420.0,0.00012147,2]
[347225748,1735595432680,-380.15475522,0.00012177,2]
[347225749,1735595432690,-505.37,0.00012178,2]
[347225750,1735595432699,-2500.0,0.000122,2]
[347225751,1735595432709,-985.02,0.00012235,2]
[347225752,1735595432719,-285.4375257,0.0001225,2]
[347225753,1735595432746,-490.2,0.000123,2]
[347225754,1735595432755,-507292.17377293,0.000123,2]
[347225755,1735595432767,-1774.01012085,0.000123,2]
[347225757,1735595432779,-30813.13456534,0.000123,2]
[347225759,1735595432790,-1196.60489619,0.000123,2]
[347225767,1735595432852,-1369.59238526,0.000123,2]
[347225769,1735595432864,-3700.0,0.000123,2]
[347225774,1735595432898,-3585.89692,0.000123,2]
[347225777,1735595432925,-7800.92037917,0.000123,2]
[347225779,1735595432934,-1179.24498253,0.000123,2]
[347225781,1735595432943,-1900.0,0.000123,4]
[347225783,1735595432953,-490.81,0.0001238,2]
[347225785,1735595432962,-485.4287,0.00012396,2]
[347225787,1735595432971,-502.52,0.00012397,2]
[347225789,1735595432981,-234.66201733,0.00012399,2]
[347225791,1735595432991,-234.66201733,0.00012399,2]
[347225793,1735595433000,-319.23298949,0.00012399,2]
[347225795,1735595433009,-319.2329894,0.00012399,2]
[347225797,1735595433019,-319.2329894,0.00012399,2]
[347225799,1735595433029,-319.2329894,0.00012399,2]
[347225801,1735595433039,-319.2329894,0.00012399,2]
[347225803,1735595433048,-319.2329894,0.00012399,2]
[347225805,1735595433058,-319.2329894,0.00012399,2]
[347225807,1735595433067,-319.2329894,0.00012399,2]
[347225809,1735595433076,-319.2329894,0.00012399,2]
[347225811,1735595433086,-500.0,0.000124,2]
[347225813,1735595433096,-234.66201733,0.000124,2]
[347225815,1735595433106,-300.0,0.000124,4]
[347225817,1735595433117,-319.2329894,0.000124,2]
[347225819,1735595433127,-200.0,0.00012499,2]
[347225821,1735595433137,-933.05,0.00012499,2]
[347225823,1735595433147,-503.83,0.00012499,2]
[347225825,1735595433157,-13793.42966395,0.000125,2]
[347225827,1735595433165,-383395.89457776,0.000125,2]
[347225830,1735595433194,-1179.24498253,0.000125,2]
[347225833,1735595433275,-446.24052416,0.000125,2]
[347225843,1735595438041,-500.0,0.00012473,2]
[347225844,1735595438050,-271.0152849,0.000125,2]
[347225845,1735595438501,-672.672,0.000125,2]
[347225846,1735595438593,-504.40585205,0.000125,2]
[347225847,1735595438604,-1450.07998979,0.000125,2]
[347225848,1735595438615,-48009.59999997,0.000125,2]
[347225849,1735595438626,-6324.15975414,0.000125,2]
[347225850,1735595438641,-5511.78573928,0.000125,2]
[347225851,1735595438652,-807.68507443,0.000125,2]
[347225950,1735595440032,-3710.27810591,0.000125,2]
[347225951,1735595440043,-56100.0,0.000125,2]
[347225952,1735595440076,-6800.77441412,0.000125,2]
[347225953,1735595440088,-1956.16,0.000125,2]
[347225954,1735595440099,-260.51,0.000125,2]
[347225955,1735595440111,-2038.6,0.000125,2]
[347225956,1735595440173,-6692.67651458,0.000125,2]
[347225957,1735595440185,-57333.65086779,0.000125,2]
[347225961,1735595441282,-8493.3491598,0.000125,2]
[347225962,1735595441306,-388.33990101,0.000125,2]
[347225963,1735595441317,-3037.62,0.000125,2]
[347225964,1735595441328,-1760.77577945,0.000125,2]
[347225965,1735595441341,-14593.90277342,0.000125,2]
[347225966,1735595441411,-2306.41831059,0.000125,2]
[347225967,1735595441422,-10033.0,0.000125,2]
[347225968,1735595441433,-300.0,0.000125,2]
[347225969,1735595441444,-1419.99639479,0.000125,2]
[347225970,1735595441469,-4153.45764166,0.000125,2]
[347226004,1735595443138,-13954.5,0.000125,2]
[347226005,1735595443150,-7543.2831573,0.000125,2]
[347226006,1735595443161,-481.69165814,0.000125,2]
[347226007,1735595443173,-35678.99311828,0.000125,2]
[347226008,1735595443184,-23616.42248021,0.000125,2]
[347226009,1735595443212,-114392.57401751,0.000125,2]
[347226010,1735595443224,-831.57160407,0.000125,2]
[347226011,1735595443349,-923.0,0.000125,2]
[347226012,1735595443360,-17651.118887,0.000125,2]
[347226013,1735595443371,-17060.98047176,0.000125,2]
[347226014,1735595443381,-2734.9,0.000125,2]
[347226015,1735595443392,-365.545,0.000125,2]
[347226016,1735595443403,-412.30999988,0.000125,2]
[347226017,1735595443414,-2010.44552096,0.000125,2]
[347226018,1735595443425,-3747.3,0.000125,2]
[347226019,1735595443436,-19591.55653594,0.000125,2]
[347226020,1735595443446,-60309.06773031,0.000125,2]
[347226021,1735595443457,-64905.90960437,0.000125,2]
[347226022,1735595443484,-269.56892999,0.000125,2]
[347226060,1735595446086,-259.49804506,0.00011859,2]
[347226062,1735595446098,-290.25578665,0.00011859,2]
[347226064,1735595446109,-695.75616829,0.00011859,2]
[347226066,1735595446119,-318.89383171,0.000125,2]
[347226071,1735595446174,-1672.53816199,0.000125,2]
[347226073,1735595446186,-1031.8249872,0.000125,2]
[347226075,1735595446197,-27905.99999998,0.000125,2]
[347226082,1735595446269,-3836.3442291,0.000125,2]
[347226087,1735595446340,-8866.70021632,0.000125,2]
[347226088,1735595446372,-373.46775991,0.000125,2]
[347226090,1735595446383,-616.0,0.000125,2]
[347226091,1735595446395,-18808.28833332,0.000125,2]
[347226092,1735595446426,-392.6634,0.000125,2]
[347226093,1735595446438,-957.40000005,0.000125,2]
[347226094,1735595495404,191.86,9.36e-05,2]
[347226095,1735595619681,250.0,0.00010958,2]
[347226096,1735595665236,1161.03,9.004e-05,2]
[347226098,1735595798872,200.0,0.00010888,2]
[347226099,1735595804737,3149.12649063,0.00010968,2]
[347226100,1735595807628,1679.62,0.00010908,2]
[347226101,1735595809725,3149.12649063,0.00010973,2]
[347226102,1735595814809,3149.12649063,0.00010977,2]
[347226104,1735595855942,250.0,0.00010847,2]
[347226105,1735595918178,150.0,0.00010959,2]
[347226106,1735595919537,928.17633053,0.00010976,2]
[347226107,1735595944629,1846.14,0.00010649,2]
[347226108,1735595956817,928.89148181,0.00010976,2]
[347226109,1735596002786,845.81,0.00010727,2]
[347226110,1735596005767,1008.98,0.00010741,2]
[347226113,1735596016593,736.03,0.00010748,2]
[347226114,1735596024441,1500.0,0.00010765,2]
[347226115,1735596030207,556.93,0.00010771,2]
[347226116,1735596041530,177.47858505,0.00010977,2]
[347226117,1735596048421,2000.0,0.00010795,2]
[347226118,1735596063004,9473.46455424,0.00010968,2]
[347226119,1735596117804,3742.51,0.00010825,2]
[347226120,1735596122948,585.55,0.00010825,2]
[347226122,1735596194382,1102.87,0.00010825,2]
[347226123,1735596202245,4370.18,0.00010825,2]
[347226124,1735596227909,1420.83,0.00010912,2]
[347226125,1735596245410,461.93,0.0001082,2]
[347226126,1735596278722,469.82,0.00010814,2]
[347226127,1735596285873,2239.39,0.00010959,2]
[347226128,1735596296424,400.0,0.00010986,2]
[347226129,1735596299139,250.0,0.00010814,2]
[347226130,1735596305342,1887.49,0.0001082,2]
[347226131,1735596312995,162.52,0.00010814,2]
[347226132,1735596326578,157.07,0.00010137,2]
[347226133,1735596335328,494.03,0.00010824,2]
[347226134,1735596343192,269.64940049,0.0001077,2]
[347226154,1735596425369,192.9,0.00010598,2]
[347226155,1735596433605,157.6,0.00010598,2]
[347226156,1735596527213,167.97,0.00010903,2]
[347226157,1735596541891,1000.0,0.0001082,2]
[347226158,1735596586719,4322.83,0.00010959,2]
[347226159,1735596614419,1235.29,8.679e-05,2]
[347226160,1735596614581,1235.29,0.00010943,2]
[347226161,1735596630236,23900.0,0.00010605,2]
[347226181,1735596632216,-438.1314448,0.00011068,2]
[347226183,1735596632227,-61.8685552,0.00011068,2]
[347226185,1735596632242,-500.0,0.00011068,2]
[347226187,1735596632251,-98.06822922,0.00011068,2]
[347226190,1735596632263,-401.93177078,0.00011068,2]
[347226192,1735596632272,-382.63501621,0.00011068,2]
[347226195,1735596632298,-89.64587145,0.00011068,2]
[347226197,1735596632307,-300.0,0.00011174,2]
[347226199,1735596632316,-500.0,0.00011177,2]
[347226200,1735596632326,-162.89,0.00011188,2]
[347226201,1735596632335,-150.0,0.00011244,2]
[347226202,1735596632344,-150.0,0.00011244,2]
[347226203,1735596632356,-150.13475743,0.00011244,2]
[347226204,1735596632365,-150.0,0.00011244,2]
[347226205,1735596632375,-150.0,0.00011244,2]
[347226206,1735596632384,-284.42890518,0.00011244,2]
[347226207,1735596632393,-168.75496854,0.00011244,2]
[347226208,1735596632403,-150.0,0.00011244,2]
[347226209,1735596632413,-150.0,0.00011244,2]
[347226210,1735596632422,-158.70219522,0.00011244,2]
[347226211,1735596632431,-171.69550467,0.00011244,2]
[347226212,1735596632441,-150.0,0.00011244,2]
[347226213,1735596632450,-150.0,0.00011244,2]
[347226214,1735596632459,-150.0,0.00011265,2]
[347226215,1735596632468,-234.42692736,0.00011267,2]
[347226216,1735596632478,-150.0,0.00011286,2]
[347226217,1735596632487,-166.89,0.00011287,2]
[347226218,1735596632496,-150.0,0.00011288,2]
[347226219,1735596632506,-150.0,0.00011296,2]
[347226220,1735596632515,-150.0,0.00011307,2]
[347226221,1735596632525,-150.0,0.00011329,2]
[347226222,1735596632534,-150.0,0.00011333,2]
[347226223,1735596632543,-150.0,0.00011348,2]
[347226224,1735596632553,-150.0,0.0001135,2]
[347226225,1735596632563,-150.0,0.00011369,2]
[347226226,1735596632572,-150.0,0.00011371,2]
[347226227,1735596632582,-150.0,0.00011392,2]
[347226228,1735596632591,-150.0,0.000114,2]
[347226229,1735596632601,-150.0,0.00011413,2]
[347226230,1735596632611,-150.0,0.00011434,2]
[347226231,1735596632620,-150.0,0.00011452,2]
[347226232,1735596632630,-150.0,0.00011456,2]
[347226233,1735596632639,-687.21,0.00011477,2]
[347226234,1735596632648,-491.59,0.00011477,2]
[347226236,1735596632658,-150.0,0.00011477,2]
[347226238,1735596632667,-687.21,0.0001148,2]
[347226240,1735596632676,-687.21,0.00011483,2]
[347226242,1735596632685,-687.21,0.00011486,2]
[347226244,1735596632695,-687.21,0.00011489,2]
[347226246,1735596632704,-687.21,0.00011492,2]
[347226248,1735596632713,-150.0,0.00011494,2]
[347226250,1735596632723,-687.21,0.00011495,2]
[347226252,1735596632732,-687.21,0.00011498,2]
[347226254,1735596632741,-150.0,0.00011498,2]
[347226256,1735596632751,-687.21,0.00011501,2]
[347226258,1735596632761,-687.21,0.00011504,2]
[347226260,1735596632770,-150.0,0.00011504,2]
[347226263,1735596632779,-687.21,0.00011507,2]
[347226265,1735596632788,-2751.0,0.00011507,2]
[347226267,1735596632797,-687.21,0.0001151,2]
[347226269,1735596632807,-687.21,0.00011513,2]
[347226271,1735596632816,-687.21,0.00011516,2]
[347226273,1735596632829,-687.21,0.00011519,2]
[347226275,1735596632838,-150.0,0.00011519,2]
[347226277,1735596632849,-501.49,0.00011521,2]
[347226279,1735596632858,-498.77,0.00011521,2]
[347226281,1735596632867,-687.21,0.00011522,2]
[347226283,1735596632876,-687.21,0.00011525,2]
[347226285,1735596632885,-687.21,0.00011528,2]
[347226287,1735596632895,-687.21,0.00011531,2]
[347226289,1735596632906,-687.21,0.00011534,2]
[347226291,1735596632915,-150.0,0.0001154,2]
[347226293,1735596632925,-150.0,0.00011556,2]
[347226295,1735596632934,-150.0,0.00011561,2]
[347226297,1735596632944,-569.0547,0.00011578,2]
[347226299,1735596632953,-3722.3541,0.00011578,2]
[347226301,1735596632963,-150.0,0.00011583,2]
[347226303,1735596632972,-771.32,0.000116,2]
[347226305,1735596632981,-771.32,0.000116,2]
[347226307,1735596632990,-437.44,0.000116,2]
[347226309,1735596633000,-771.32,0.000116,2]
[347226311,1735596633010,-437.44,0.000116,2]
[347226313,1735596633019,-771.32,0.000116,2]
[347226315,1735596633029,-437.44,0.000116,2]
[347226317,1735596633039,-638.42,0.000116,2]
[347226319,1735596633048,-413.52,0.000116,2]
[347226320,1735596633057,-150.0,0.00011604,2]
[347226321,1735596633067,-150.0,0.00011608,2]
[347226323,1735596633076,-150.0,0.00011619,2]
[347226325,1735596633086,-150.0,0.00011625,2]
[347226327,1735596633096,-437.44,0.00011641,2]
[347226329,1735596633108,-437.44,0.00011641,2]
[347226331,1735596633117,-437.44,0.00011641,2]
[347226333,1735596633127,-150.0,0.00011646,2]
[347226336,1735596633137,-150.0,0.0001166,2]
[347226338,1735596633147,-150.0,0.00011667,2]
[347226340,1735596633157,-300.34,0.00011671,2]
[347226341,1735596633167,-300.0,0.00011671,2]
[347226344,1735596633180,-270.48780477,0.00011676,2]
[347226345,1735596633190,-671.2439,0.00011677,2]
[347226347,1735596633200,-509.97,0.00011678,2]
[347226349,1735596633210,-503.35,0.00011678,2]
[347226351,1735596633219,-500.38,0.00011678,2]
[347226353,1735596633229,-505.5,0.00011678,2]
[347226355,1735596633238,-150.47,0.00011678,2]
[347226357,1735596633248,-150.0,0.00011678,2]
[347226359,1735596633257,-150.0,0.00011678,2]
[347226361,1735596633267,-1560.88,0.00011678,2]
[347226363,1735596633276,-150.0,0.00011678,2]
[347226365,1735596633286,-150.0,0.00011678,2]
[347226367,1735596633295,-150.0,0.00011678,2]
[347226369,1735596633304,-150.0,0.00011678,2]
[347226371,1735596633314,-150.0,0.00011678,2]
[347226373,1735596633324,-150.0,0.00011678,2]
[347226375,1735596633333,-150.0,0.00011678,2]
[347226376,1735596633343,-150.0,0.00011678,2]
[347226378,1735596633353,-152.33,0.00011678,2]
[347226381,1735596633363,-300.0,0.00011678,2]
[347226413,1735596633623,-150.0,0.00011689,2]
[347226414,1735596633716,-800.0,0.000117,4]
[347226415,1735596633726,-150.0,0.0001171,2]
[347226416,1735596633735,-150.0,0.00011712,2]
[347226417,1735596633745,-162.52,0.00011715,2]
[347226418,1735596633754,-150.0,0.00011731,2]
[347226419,1735596633763,-771.32,0.00011741,2]
[347226420,1735596633773,-437.44,0.00011741,2]
[347226421,1735596633782,-771.32,0.00011741,2]
[347226423,1735596633791,-150.0,0.00011744,2]
[347226425,1735596633801,-150.0,0.00011752,2]
[347226426,1735596633811,-22018.0,0.00011759,2]
[347226428,1735596633825,-150.0,0.00011764,2]
[347226430,1735596633835,-150.0,0.00011773,2]
[347226432,1735596633845,-150.0,0.00011794,2]
[347226434,1735596633858,-1700.0,0.000118,4]
[347226436,1735596633868,-150.0,0.00011816,2]
[347226438,1735596633878,-150.0,0.00011816,2]
[347226441,1735596633888,-617.0,0.00011836,2]
[347226442,1735596633897,-150.0,0.00011837,2]